fUSD/lending_fUSD_20241031
["ID","MTS","AMOUNT","RATE_DAILY","PERIOD"]
[341099427,1730364644566,-2116.49,0.00049627,7]
[341099429,1730364644576,-2116.49,0.00049627,7]
[341099431,1730364644586,-244.03,0.00049852,2]
[341099433,1730364644595,-155.0,0.0005,120]
[341099435,1730364644605,-50000.0,0.0005,36]
[341099437,1730364644615,-152.0,0.00050247,4]
[341099439,1730364644624,-44031.01,0.00050283,7]
[341099441,1730364644634,-32380.49,0.00050283,7]
[341099443,1730364644644,-1124.11,0.00050283,7]
[341099445,1730364644653,-8768.81,0.00050283,7]
[341099447,1730364644663,-4021.37,0.00050284,7]
[341099449,1730364644674,-2011.05,0.000503,7]
[341099451,1730364644683,-889.13,0.000503,7]
[341099453,1730364644694,-258.91,0.00050373,120]
[341099455,1730364644704,-500.0,0.000505,2]
[341099457,1730364644714,-1074.0,0.000506,11]
[341099458,1730364644723,-500.0,0.00050684,120]
[341099459,1730364644733,-500.0,0.00050684,120]
[341099461,1730364644742,-1280.58,0.00050684,120]
[341099463,1730364644752,-500.0,0.00050684,120]
[341099465,1730364644762,-500.0,0.00050684,120]
[341099467,1730364644771,-500.0,0.00050684,120]
[341099469,1730364644781,-450.0,0.00050684,120]
[341099471,1730364644790,-500.0,0.00050684,120]
[341099473,1730364644800,-2000.0,0.00050684,120]
[341099475,1730364644809,-500.0,0.00050684,120]
[341099477,1730364644818,-500.0,0.00050684,120]
[341099479,1730364644827,-2753.29,0.00050891,7]
[341099481,1730364644837,-500.0,0.00050952,120]
[341099483,1730364644846,-4749.5568547,0.00051,120]
[341099484,1730364644856,-1500.54377908,0.00051026,15]
[341099486,1730364644866,-379.79,0.00051305,2]
[341099488,1730364644876,-39308.3,0.00051498,7]
[341099490,1730364644885,-1000.0,0.00051498,10]
[341099492,1730364644894,-2902.0,0.00051726,120]
[341099494,1730364644904,-500.46528927,0.0005173,7]
[341099496,1730364644915,-1037.6445,0.00051798,2]
[341099498,1730364644924,-310.5503,0.00051798,2]
[341099500,1730364644934,-360.17554882,0.00051898,120]
[341099502,1730364644943,-500.0,0.00051898,120]
[341099504,1730364644953,-1280.58,0.00051898,120]
[341099506,1730364644963,-500.0,0.00051898,120]
[341099508,1730364644977,-500.0,0.00051898,120]
[341099510,1730364644986,-500.0,0.00051898,120]
[341099512,1730364644996,-500.0,0.00051898,120]
[341099514,1730364645006,-2000.0,0.00051898,120]
[341099516,1730364645017,-500.0,0.00051898,120]
[341099518,1730364645026,-500.0,0.00051898,120]
[341099520,1730364645035,-5057.0916,0.00051899,2]
[341099522,1730364645045,-216.1539,0.00051899,2]
[341099524,1730364645054,-830.93508838,0.00052,10]
[341099526,1730364645064,-4179.42,0.00052,100]
[341099528,1730364645073,-244.03,0.00052118,2]
[341099531,1730364645084,-500.0,0.00052121,120]
[341099533,1730364645093,-104861.32,0.0005214,7]
[341099535,1730364645102,-186.73870036,0.00052169,30]
[341099537,1730364645112,-939.0,0.00052345,30]
[341099539,1730364645122,-500.0,0.000526,120]
[341099541,1730364645131,-1280.58,0.000526,120]
[341099543,1730364645141,-500.0,0.000526,120]
[341099545,1730364645151,-500.0,0.000526,120]
[341099546,1730364645161,-529.46865035,0.000526,120]
[341099547,1730364645171,-500.0,0.000526,120]
[341099548,1730364645181,-2000.0,0.000526,120]
[341099549,1730364645191,-500.0,0.000526,120]
[341099550,1730364645200,-500.0,0.000526,120]
[341099551,1730364645209,-260197.84719934,0.00052601,7]
[341099552,1730364645219,-79741.54,0.000529,7]
[341099553,1730364645229,-712.0,0.000532,14]
[341099554,1730364645239,-500.0,0.0005329,120]
[341099555,1730364645249,-251.049807,0.0005329,120]
[341099556,1730364645259,-500.0,0.00053299,120]
[341099557,1730364645269,-1003.008,0.00053299,30]
[341099558,1730364645279,-1280.58,0.00053299,120]
[341099559,1730364645289,-500.0,0.00053299,120]
[341099560,1730364645299,-500.0,0.00053299,120]
[341099561,1730364645310,-500.0,0.00053299,120]
[341099562,1730364645321,-2000.0,0.00053299,120]
[341099563,1730364645330,-500.0,0.00053299,120]
[341099564,1730364645341,-500.0,0.00053299,120]
[341099565,1730364645351,-389910.37486948,0.000533,120]
[341099567,1730364645362,-195.19639223,0.000533,30]
[341099568,1730364645372,-379.79,0.00053569,2]
[341099569,1730364645383,-578.02564093,0.00053689,120]
[341099570,1730364645392,-1280.58,0.00053689,120]
[341099571,1730364645402,-257.0,0.00053815,7]
[341099572,1730364645413,-500.0,0.00053893,120]
[341099573,1730364645424,-2000.0,0.00053893,120]
[341099574,1730364645434,-500.0,0.00053899,120]
[341099575,1730364645444,-500.0,0.00053899,120]
[341099576,1730364645454,-700.0,0.000539,29]
[341099577,1730364645463,-700.0,0.000539,29]
[341099578,1730364645474,-700.0,0.000539,29]
[341099579,1730364645484,-700.0,0.000539,29]
[341099580,1730364645495,-700.0,0.000539,29]
[341099581,1730364645506,-700.0,0.000539,39]
[341099582,1730364645516,-700.0,0.000539,29]
[341099583,1730364645525,-700.0,0.000539,29]
[341099584,1730364645535,-700.0,0.000539,29]
[341099585,1730364645545,-700.0,0.000539,29]
[341099586,1730364645555,-700.0,0.000539,29]
[341099587,1730364645564,-700.0,0.000539,39]
[341099588,1730364645574,-1495.59,0.00053954,120]
[341099589,1730364645584,-152.0,0.00054112,5]
[341099590,1730364645593,-244.03,0.00054384,2]
[341099591,1730364645603,-1000.0,0.00054394,120]
[341099592,1730364645612,-541.09,0.00054482,120]
[341099593,1730364645622,-1495.59,0.00054639,120]
[341099594,1730364645632,-500.0,0.00054795,120]
[341099595,1730364645641,-500.0,0.00054795,120]
[341099596,1730364645650,-500.0,0.00054984,120]
[341099597,1730364645661,-787.03075725,0.00055,30]
[341099598,1730364645670,-939.0,0.000551,120]
[341099599,1730364645679,-1495.59,0.00055324,120]
[341099600,1730364645690,-1500.54377908,0.00055769,15]
[341099601,1730364645699,-379.79,0.00055833,2]
[341099602,1730364645709,-258.91,0.0005597,120]
[341099603,1730364645719,-1000.0,0.00055979,2]
[341099604,1730364645729,-1495.59,0.00056009,120]
[341099605,1730364645739,-500.0,0.00056678,120]
[341099606,1730364645749,-1495.59,0.00056694,120]
[341099607,1730364645758,-155.0,0.00057,120]
[341099608,1730364645768,-202.65,0.00057,15]
[341099609,1730364645778,-162.03,0.00057377,120]
[341099610,1730364645788,-1495.59,0.00057379,120]
[341099611,1730364645797,-63975.75781401,0.0005742,2]
[341099612,1730364645806,-500.0,0.00057534,120]
[341099613,1730364645816,-247.251,0.00057534,120]
[341099614,1730364645826,-2000.0,0.0005771,2]
[341099615,1730364645836,-525.74,0.000578,120]
[341099616,1730364645846,-1513.0,0.000579,120]
[341099617,1730364645857,-500.0,0.00057973,15]
[341099618,1730364645866,-152.0,0.00057976,6]
[341099619,1730364645876,-500.0,0.00057998,120]
[341099620,1730364645887,-500.0,0.00057998,120]
[341099621,1730364645897,-615.68103165,0.00057999,12]
[341099623,1730364645908,-1139.02217927,0.00057999,120]
[341099625,1730364645919,-1280.58,0.00057999,120]
[341099627,1730364645928,-1280.58,0.00057999,120]
[341099629,1730364645939,-500.0,0.00057999,120]
[341099630,1730364645948,-500.0,0.00057999,120]
[341099632,1730364645958,-500.0,0.00057999,120]
[341099634,1730364645970,-500.0,0.00057999,120]
[341099636,1730364645980,-500.0,0.00057999,120]
[341099638,1730364645990,-500.0,0.00057999,120]
[341099640,1730364646000,-500.0,0.00057999,120]
[341099643,1730364646011,-516.79136503,0.00057999,120]
[341099645,1730364646020,-637.25136797,0.00057999,120]
[341099647,1730364646030,-500.0,0.00057999,120]
[341099649,1730364646040,-500.0,0.00057999,120]
[341099651,1730364646051,-2000.0,0.00057999,120]
[341099653,1730364646061,-2000.0,0.00057999,120]
[341099655,1730364646070,-2000.0,0.00057999,120]
[341099657,1730364646080,-2000.0,0.00057999,120]
[341099659,1730364646090,-2000.0,0.00057999,120]
[341099660,1730364646100,-500.0,0.00057999,120]
[341099662,1730364646110,-500.0,0.00057999,120]
[341099664,1730364646120,-500.0,0.00057999,120]
[341099666,1730364646130,-500.0,0.00057999,120]
[341099668,1730364646140,-163039.3048204,0.00058,30]
[341099670,1730364646150,-233.84317613,0.00058,120]
[341099672,1730364646160,-1126.246,0.00058,50]
[341099674,1730364646170,-500000.0,0.00058,120]
[341099675,1730364646179,-880.0,0.00058,120]
[341099676,1730364646190,-880.0,0.00058,120]
[341099677,1730364646200,-880.0,0.00058,120]
[341099678,1730364646209,-880.0,0.00058,120]
[341099679,1730364646219,-880.0,0.00058,120]
[341099680,1730364646229,-880.0,0.00058,120]
[341099681,1730364646238,-880.0,0.00058,120]
[341099682,1730364646248,-880.0,0.00058,120]
[341099683,1730364646259,-880.0,0.00058,120]
[341099684,1730364646269,-880.0,0.00058,120]
[341099685,1730364646279,-880.0,0.00058,120]
[341099686,1730364646289,-889.05692662,0.00058,120]
[341099687,1730364646299,-939.0,0.00058,120]
[341099688,1730364646308,-1495.59,0.00058064,120]
[341099689,1730364646318,-379.79,0.00058097,2]
[341099690,1730364646329,-416.12445278,0.0005816,2]
[341099691,1730364646338,-500.0,0.00058218,120]
[341099692,1730364646349,-500.0,0.00058218,120]
[341099693,1730364646359,-1280.58,0.00058219,120]
[341099694,1730364646370,-164.77274088,0.0005822,120]
[341099695,1730364646380,-1312.727,0.000583,90]
[341099696,1730364646390,-151.0,0.00058356,120]
[341099697,1730364646400,-1280.58,0.00058399,120]
[341099698,1730364646411,-272.07713981,0.00058399,120]
[341099699,1730364646422,-500.0,0.00058399,120]
[341099700,1730364646432,-500.0,0.00058399,120]
[341099701,1730364646442,-2000.0,0.00058399,120]
[341099702,1730364646451,-500.0,0.00058399,120]
[341099703,1730364646461,-500.0,0.00058399,120]
[341099704,1730364646471,-250000.0,0.000584,120]
[341099705,1730364646481,-171.103117,0.00058498,120]
[341099706,1730364646491,-1000000.0,0.000585,120]
[341099707,1730364646501,-591.67482504,0.000587,120]
[341099708,1730364646511,-1495.59,0.00058749,120]
[341099709,1730364646521,-500.0,0.00058799,120]
[341099710,1730364646531,-500.0,0.00058799,120]
[341099711,1730364646541,-14633.84272328,0.000588,120]
[341099712,1730364646552,-1079.0,0.0005883,120]
[341099713,1730364646563,-271.50763878,0.0005899,2]
[341099714,1730364646574,-9506.30352132,0.0005899,2]
[341099715,1730364646583,-1280.58,0.00058999,120]
[341099716,1730364646594,-1280.58,0.00058999,120]
[341099717,1730364646604,-1280.58,0.00058999,120]
[341099718,1730364646613,-500.0,0.00058999,120]
[341099719,1730364646623,-500.0,0.00058999,120]
[341099720,1730364646632,-264.65256298,0.00058999,120]
[341099721,1730364646642,-500.0,0.00058999,120]
[341099722,1730364646652,-500.0,0.00058999,120]
[341099723,1730364646661,-185.48568404,0.00058999,120]
[341099724,1730364646671,-2000.0,0.00058999,120]
[341099725,1730364646681,-500.0,0.00058999,120]
[341099726,1730364646691,-500.0,0.00058999,120]
[341099727,1730364646700,-500.0,0.00058999,120]
[341099728,1730364646710,-500.0,0.00058999,120]
[341099729,1730364646720,-500.0,0.00058999,120]
[341099730,1730364646732,-500.0,0.00058999,120]
[341099731,1730364646743,-500.0,0.00058999,120]
[341099732,1730364646754,-500.0,0.00058999,120]
[341099733,1730364646763,-266.8126667,0.00059,30]
[341099734,1730364646774,-150.0,0.00059,40]
[341099735,1730364646783,-249.07403594,0.00059,120]
[341099736,1730364646794,-224.99509774,0.00059,120]
[341099737,1730364646806,-2000.0,0.00059,30]
[341099738,1730364646816,-2100.36313465,0.00059,120]
[341099739,1730364646826,-2657.39453039,0.00059,120]
[341099740,1730364646837,-234.87735,0.00059,120]
[341099741,1730364646847,-1807.65872595,0.00059,30]
[341099742,1730364646858,-147304.68808661,0.00059,120]
[341099743,1730364646943,150.0,0.0003,2]
[341099744,1730364646966,-40623.71439435,0.00059,120]
[341099745,1730364646981,-207670.35751904,0.00059,120]
[341099746,1730364646990,-38027.62687912,0.00059,120]
[341099747,1730364647003,-236795.0492652,0.00059,120]
[341099748,1730364647018,-225177.32385568,0.00059,120]
[341099749,1730364647027,-569.22842359,0.0005909,2]
[341099750,1730364647036,-1280.58,0.00059199,120]
[341099751,1730364647173,-2000.0,0.00059199,120]
[341099752,1730364647186,-10761.70687872,0.000592,60]
[341099753,1730364647200,-69302.56368,0.000592,60]
[341099754,1730364647213,-37191.318,0.000592,60]
[341099755,1730364647226,-7164.87881704,0.000592,60]
[341099756,1730364647239,-78852.29227628,0.000592,60]
[341099757,1730364647249,-479.37,0.000592,60]
[341099758,1730364647258,-2478.33929227,0.000592,120]
[341099759,1730364647268,-700.0,0.00059379,41]
[341099760,1730364647277,-700.0,0.00059379,41]
[341099761,1730364647286,-1495.59,0.00059434,120]
[341099762,1730364647295,-500.0,0.00059449,120]
[341099763,1730364647305,-500.0,0.00059449,120]
[341099764,1730364647315,-30000.93,0.0005945,120]
[341099765,1730364647325,-150.103117,0.00059498,120]
[341099766,1730364647334,-132731.18343945,0.000595,120]
[341099768,1730364891366,150.0,0.0003,2]
[341099769,1730365017824,150.0,0.00017605,2]
[341099771,1730365021398,157.77,0.00015342,2]
[341099772,1730365059110,150.0,0.00017605,2]
[341099774,1730365100636,150.0,0.00017605,2]
[341099775,1730365141934,150.0,0.00017605,2]
[341099776,1730365154918,173.21635484,0.0003,5]
[341099777,1730365183299,150.0,0.00017605,2]
[341099778,1730365280709,234.0,0.000311,2]
[341099779,1730365281307,222.0,0.000311,2]
[341099796,1730365442488,150.0,0.00035,2]
[341099820,1730365609565,1153.23036798,0.00044571,30]
[341099843,1730365634123,-150.0,0.0004,120]
[341099844,1730365634143,-150.0,0.000443,2]
[341099845,1730365634163,-150.0,0.00045,120]
[341099846,1730365634183,-299.04,0.000465,7]
[341099847,1730365634201,-10092.0,0.00048,30]
[341099848,1730365634222,-2045.14,0.0004868,7]
[341099849,1730365634241,-499.99,0.0004898,30]
[341099850,1730365634263,-3294.68,0.0004898,2]
[341099851,1730365634281,-500.0,0.0004898,120]
[341099852,1730365634301,-818.199,0.0004898,85]
[341099853,1730365634320,-1316.64,0.000497,7]
[341099854,1730365634341,-2179.87,0.000497,7]
[341099855,1730365634360,-20000.0,0.0005,120]
[341099856,1730365634378,-150.0,0.0005,120]
[341099857,1730365634398,-4000.0,0.0005,120]
[341099858,1730365634419,-500.0,0.00050413,120]
[341099859,1730365634439,-488.74497297,0.00050684,120]
[341099860,1730365634462,-460.10002704,0.00050684,120]
[341099861,1730365634484,-305.16116086,0.00050684,120]
[341099862,1730365646098,-1694.83883914,0.00050684,120]
[341099863,1730365646122,-2000.0,0.00050684,120]
[341099864,1730365646142,-500.0,0.00051847,120]
[341099865,1730365646165,-157.57414105,0.00052169,30]
[341099866,1730365646185,-227.87,0.00052326,2]
[341099867,1730365646206,-3146.46,0.00052392,2]
[341099868,1730365646230,-6021.3860148,0.000525,120]
[341099869,1730365646250,-2000.0,0.000526,120]
[341099870,1730365646273,-198.0,0.00053,120]
[341099871,1730365646293,-324.65,0.00053014,120]
[341099872,1730365646313,-3146.46,0.00053234,2]
[341099873,1730365646334,-500.0,0.0005328,120]
[341099874,1730365646356,-2000.0,0.00053299,120]
[341099875,1730365646376,-2000.0,0.00053299,120]
[341099876,1730365646394,-1166.97,0.00053467,2]
[341099877,1730365646417,-250.0,0.00053559,120]
[341099878,1730365646441,-249.2,0.000537,14]
[341099879,1730365646463,-162.03,0.00053701,120]
[341099880,1730365646486,-700.0,0.00053981,29]
[341099881,1730365646514,-404.76817904,0.00053981,29]
[341099882,1730365646538,-700.0,0.00053987,29]
[341099883,1730365646558,-700.0,0.00053987,29]
[341099884,1730365646579,-700.0,0.00053987,29]
[341099885,1730365646602,-700.0,0.00053987,29]
[341099886,1730365646623,-700.0,0.00053987,29]
[341099887,1730365646645,-700.0,0.00053987,39]
[341099888,1730365646665,-3146.46,0.00054076,2]
[341099889,1730365646684,-217.94,0.00054086,2]
[341099890,1730365646705,-250.0,0.000542,120]
[341099891,1730365646724,-150.0,0.00054434,7]
[341099892,1730365646750,-227.87,0.0005459,2]
[341099893,1730365646770,-23900.0,0.00054688,2]
[341099894,1730365646790,-500.0,0.00054795,120]
[341099895,1730365646809,-3146.46,0.00054918,2]
[341099896,1730365646828,-150.0,0.00055,120]
[341099897,1730365646847,-4000.0,0.00055,120]
[341099898,1730365646866,-500.0,0.00055084,120]
[341099899,1730365646886,-1000.0,0.00055602,120]
[341099900,1730365646905,-3146.46,0.0005576,2]
[341099901,1730365646924,-1022.0,0.00056,120]
[341099902,1730365646943,-3146.46,0.00056602,2]
[341099903,1730365646964,-671.36,0.0005674,120]
[341099904,1730365646990,-227.87,0.00056854,2]
[341099905,1730365647012,-500.0,0.00056888,120]
[341099906,1730365647033,-3146.46,0.00057443,2]
[341099907,1730365647053,-4000.0,0.000575,120]
[341099908,1730365647073,-2000.0,0.00057999,120]
[341099909,1730365647093,-2000.0,0.00057999,120]
[341099910,1730365647113,-2000.0,0.00057999,120]
[341099911,1730365647133,-3146.46,0.00058285,2]
[341099912,1730365647153,-2000.0,0.00058399,120]
[341099913,1730365647173,-500.0,0.00058692,120]
[341099914,1730365647193,-180.0,0.00058727,120]
[341099915,1730365647212,-166.215,0.00058795,2]
[341099916,1730365647235,-13170.45845096,0.000588,120]
[341099917,1730365647258,-1050.38064541,0.00058899,15]
[341099918,1730365647278,-1000.0,0.00058999,120]
[341099919,1730365647298,-595.1017044,0.00059,30]
[341099920,1730365647318,-227.87,0.00059118,2]
[341099921,1730365647338,-500.0,0.00059199,120]
[341099922,1730365647358,-500.0,0.00059199,120]
[341099923,1730365647377,-500.0,0.00059199,120]
[341099924,1730365647396,-500.0,0.00059199,120]
[341099925,1730365647416,-500.0,0.00059199,120]
[341099926,1730365647562,-500.0,0.00059199,120]
[341099927,1730365647583,-500.0,0.00059199,120]
[341099928,1730365647603,-500.0,0.00059199,120]
[341099929,1730365647622,-500.0,0.00059199,120]
[341099930,1730365647642,-500.0,0.00059199,120]
[341099931,1730365647662,-500.0,0.00059199,120]
[341099932,1730365647682,-500.0,0.00059199,120]
[341099933,1730365647701,-500.0,0.00059199,120]
[341099934,1730365647721,-500.0,0.00059199,120]
[341099935,1730365647742,-500.0,0.00059199,120]
[341099936,1730365647762,-500.0,0.00059199,120]
[341099937,1730365647782,-500.0,0.00059199,120]
[341099938,1730365647801,-500.0,0.00059199,120]
[341099939,1730365647820,-500.0,0.00059199,120]
[341099940,1730365647839,-500.0,0.00059199,120]
[341099941,1730365647858,-500.0,0.00059199,120]
[341099942,1730365647877,-500.0,0.00059199,120]
[341099943,1730365647896,-500.0,0.00059199,120]
[341099944,1730365647916,-500.0,0.00059199,120]
[341099945,1730365647936,-500.0,0.00059199,120]
[341099946,1730365647956,-500.0,0.00059199,120]
[341099947,1730365647975,-500.0,0.00059199,120]
[341099948,1730365647996,-500.0,0.00059199,120]
[341099949,1730365648016,-500.0,0.00059199,120]
[341099950,1730365648035,-500.0,0.00059199,120]
[341099951,1730365648053,-500.0,0.00059199,120]
[341099952,1730365648072,-500.0,0.00059199,120]
[341099953,1730365648091,-500.0,0.00059199,120]
[341099954,1730365648110,-500.0,0.00059199,120]
[341099955,1730365648130,-500.0,0.00059199,120]
[341099956,1730365648148,-500.0,0.00059199,120]
[341099957,1730365648167,-500.0,0.00059199,120]
[341099958,1730365648187,-500.0,0.00059199,120]
[341099959,1730365648206,-500.0,0.00059199,120]
[341099960,1730365648226,-500.0,0.00059199,120]
[341099961,1730365648248,-500.0,0.00059199,120]
[341099962,1730365648272,-500.0,0.00059199,120]
[341099963,1730365648294,-500.0,0.00059199,120]
[341099964,1730365648319,-500.0,0.00059199,120]
[341099965,1730365648340,-500.0,0.00059199,120]
[341099966,1730365648361,-500.0,0.00059199,120]
[341099967,1730365648383,-500.0,0.00059199,120]
[341099968,1730365648404,-500.0,0.00059199,120]
[341099969,1730365648424,-500.0,0.00059199,120]
[341099970,1730365648445,-500.0,0.00059199,120]
[341099971,1730365648470,-500.0,0.00059199,120]
[341099972,1730365648492,-500.0,0.00059199,120]
[341099973,1730365648515,-500.0,0.00059199,120]
[341099974,1730365648535,-500.0,0.00059199,120]
[341099975,1730365648555,-500.0,0.00059199,120]
[341099976,1730365648576,-500.0,0.00059199,120]
[341099977,1730365648596,-500.0,0.00059199,120]
[341099978,1730365648617,-500.0,0.00059199,120]
[341099979,1730365648636,-500.0,0.00059199,120]
[341099980,1730365648656,-500.0,0.00059199,120]
[341099981,1730365648676,-500.0,0.00059199,120]
[341099982,1730365648695,-500.0,0.00059199,120]
[341099983,1730365648715,-500.0,0.00059199,120]
[341099984,1730365648736,-500.0,0.00059199,120]
[341099985,1730365648755,-500.0,0.00059199,120]
[341099986,1730365648774,-416.12445278,0.00059267,2]
[341099987,1730365648793,-1451.9453,0.000594,2]
[341099988,1730365648812,-268.715,0.000594,2]
[341099989,1730365648831,-304.56611668,0.000594,31]
[341099990,1730365648850,-1000.0,0.000594,2]
[341099991,1730365648870,-700.0,0.00059467,41]
[341099992,1730365648889,-500.0,0.00059473,15]
[341099993,1730365648909,-586.93,0.00059499,120]
[341099994,1730365648929,-586.93,0.00059499,120]
[341099995,1730365648948,-586.93,0.00059499,120]
[341099996,1730365648967,-586.93,0.00059499,120]
[341099997,1730365648988,-500.0,0.00059499,120]
[341099998,1730365649007,-500.0,0.00059499,120]
[341099999,1730365649026,-500.0,0.00059499,120]
[341100000,1730365649045,-500.0,0.00059499,120]
[341100001,1730365649065,-433.91051476,0.00059499,120]
[341100002,1730365649084,-500.0,0.00059499,120]
[341100003,1730365649104,-500.0,0.00059499,120]
[341100004,1730365649123,-500.0,0.00059499,120]
[341100005,1730365649142,-500.0,0.00059499,120]
[341100006,1730365649162,-498.0,0.000595,25]
[341100007,1730365649181,-600.0,0.000595,120]
[341100008,1730365649202,-82599.71586835,0.000595,120]
[341100009,1730365649243,-23378.26345765,0.000595,120]
[341100046,1730365831917,-298.59,0.000443,2]
[341100047,1730365831927,-195.0,0.00058,120]
[341100048,1730365831937,-184.29,0.000588,120]
[341100049,1730365831948,-5257.19999999,0.000588,120]
[341100066,1730365839156,-6411.92260587,0.000588,120]
[341100067,1730365839166,-250.0,0.00058829,120]
[341100068,1730365839175,-7378.28,0.0005903,2]
[341100069,1730365839185,-162.03,0.00059173,120]
[341100070,1730365839194,-308.88563974,0.000594,2]
[341100071,1730365839203,-1000.0,0.000594,2]
[341100072,1730365839213,-705.50004268,0.000594,120]
[341100073,1730365839222,-1215.0,0.00059468,2]
[341100074,1730365839231,-500.0,0.00059499,120]
[341100075,1730365839241,-500.0,0.00059499,120]
[341100076,1730365839251,-500.0,0.00059499,120]
[341100077,1730365839260,-500.0,0.00059499,120]
[341100078,1730365839269,-500.0,0.00059499,120]
[341100079,1730365839278,-500.0,0.00059499,120]
[341100080,1730365839287,-500.0,0.00059499,120]
[341100081,1730365839297,-500.0,0.00059499,120]
[341100082,1730365839307,-197.58977861,0.00059499,120]
[341100083,1730365839320,-158.0,0.000595,25]
[341100084,1730365839329,-453475.84355173,0.000595,120]
[341100085,1730365839351,-46341.01008523,0.000595,120]
[341100086,1730365839367,-3075.01551617,0.000595,120]
[341100087,1730365839379,-2197.82259997,0.000595,120]
[341100088,1730365839390,-2450.89145897,0.000595,120]
[341100089,1730365839401,-3124.32525239,0.000595,120]
[341100090,1730365839412,-16717.46321513,0.000595,120]
[341100097,1730365839976,-622.42000578,0.000595,120]
[341100098,1730365842730,-156.0,0.000595,25]
[341100099,1730365842740,-1323.34004621,0.000595,120]
[341100101,1730365842953,-6006.57680003,0.000595,120]
[341100102,1730365842970,-225956.12870294,0.000595,120]
[341100103,1730365842979,-939.0,0.000595,120]
[341100104,1730365842988,-1000000.0,0.000595,120]
[341100105,1730365842997,-150.0,0.000595,120]
[341100106,1730365843007,-260.1817405,0.000595,120]
[341100107,1730365843016,-250.0,0.000595,120]
[341100108,1730365843025,-250.0,0.000595,120]
[341100109,1730365843035,-250.0,0.000595,120]
[341100110,1730365843044,-250.0,0.000595,120]
[341100111,1730365843053,-250.0,0.000595,120]
[341100112,1730365843062,-250.0,0.000595,120]
[341100113,1730365843071,-250.0,0.000595,120]
[341100114,1730365843080,-250.0,0.000595,120]
[341100115,1730365843090,-250.0,0.000595,120]
[341100116,1730365843099,-250.0,0.000595,120]
[341100117,1730365843108,-250.0,0.000595,120]
[341100118,1730365843118,-250.0,0.000595,120]
[341100119,1730365843127,-254.337,0.000595,120]
[341100120,1730365843137,-324.65,0.00059641,120]
[341100121,1730365843146,-11188.0,0.000597,120]
[341100122,1730365843154,-3415.16753335,0.000597,2]
[341100123,1730365843164,-181.00509252,0.000597,2]
[341100124,1730365843173,-586.93,0.00059799,120]
[341100125,1730365843182,-586.93,0.00059799,120]
[341100126,1730365843191,-586.93,0.00059799,120]
[341100127,1730365843201,-586.93,0.00059799,120]
[341100128,1730365843210,-586.93,0.00059799,120]
[341100129,1730365843220,-999.0,0.00059799,120]
[341100130,1730365843229,-500.0,0.00059799,120]
[341100131,1730365843238,-500.0,0.00059799,120]
[341100132,1730365843247,-500.0,0.00059799,120]
[341100133,1730365843257,-500.0,0.00059799,120]
[341100134,1730365843266,-500.0,0.00059799,120]